fUST/lending_fUST_20241120
["ID","MTS","AMOUNT","RATE_DAILY","PERIOD"]
[342750063,1732101033904,-500.0,0.00021917,7]
[342750064,1732101033914,-500.0,0.00021917,7]
[342750065,1732101033923,-525.92166644,0.00021917,7]
[342750066,1732101033932,-500.0,0.00021917,7]
[342750067,1732101033941,-529.69508737,0.00021917,7]
[342750068,1732101033951,-500.0,0.00021917,7]
[342750069,1732101033960,-507.66310231,0.00021917,7]
[342750070,1732101033969,-500.0,0.00021917,7]
[342750071,1732101033978,-500.0,0.00021917,7]
[342750072,1732101033988,-469.60787889,0.00021917,7]
[342750073,1732101033997,-522.91053962,0.00021917,7]
[342750074,1732101034006,-500.0,0.00021917,7]
[342750075,1732101034015,-500.0,0.00021917,7]
[342750076,1732101034024,-501.50960765,0.00021917,7]
[342750077,1732101034033,-510.52765779,0.00021917,7]
[342750078,1732101034042,-500.0,0.00021917,7]
[342750079,1732101034051,-500.0,0.00021917,7]
[342750080,1732101034060,-500.0,0.00021917,7]
[342750081,1732101034070,-500.0,0.00021917,7]
[342750082,1732101034079,-500.0,0.00021917,7]
[342750083,1732101034088,-500.0,0.00021917,7]
[342750084,1732101034097,-500.0,0.00021917,7]
[342750085,1732101034107,-500.0,0.00021917,7]
[342750086,1732101034119,-500.0,0.00021917,7]
[342750087,1732101034129,-500.0,0.00021917,7]
[342750088,1732101034138,-500.0,0.00021917,7]
[342750089,1732101034148,-500.0,0.00021917,7]
[342750090,1732101034158,-500.0,0.00021917,7]
[342750091,1732101034167,-500.0,0.00021917,7]
[342750092,1732101034176,-500.0,0.00021917,7]
[342750093,1732101034186,-500.0,0.00021917,7]
[342750094,1732101034196,-500.0,0.00021917,7]
[342750095,1732101034205,-395.02833456,0.00021917,7]
[342750096,1732101034215,-500.0,0.00021917,7]
[342750097,1732101034224,-500.0,0.00021917,7]
[342750098,1732101034233,-500.0,0.00021917,7]
[342750099,1732101034242,-500.0,0.00021917,7]
[342750100,1732101034252,-500.0,0.00021917,7]
[342750101,1732101034261,-500.0,0.00021917,7]
[342750102,1732101034271,-1974.74,0.00021917,7]
[342750103,1732101034280,-500.0,0.00021917,7]
[342750104,1732101034289,-500.0,0.00021917,7]
[342750105,1732101034298,-500.0,0.00021917,7]
[342750106,1732101034307,-500.0,0.00021917,7]
[342750107,1732101034317,-500.0,0.00021917,7]
[342750108,1732101034326,-500.0,0.00021917,7]
[342750109,1732101034336,-500.0,0.00021917,7]
[342750110,1732101034345,-500.0,0.00021917,7]
[342750111,1732101034355,-500.0,0.00021917,7]
[342750112,1732101034365,-541.03893764,0.00021917,7]
[342750113,1732101034375,-500.0,0.00021917,7]
[342750114,1732101034384,-500.0,0.00021917,7]
[342750115,1732101034395,-500.0,0.00021917,7]
[342750116,1732101034407,-500.0,0.00021917,7]
[342750117,1732101034417,-500.0,0.00021917,7]
[342750118,1732101034427,-500.0,0.00021917,7]
[342750119,1732101034437,-500.0,0.00021917,7]
[342750120,1732101034446,-500.0,0.00021917,7]
[342750121,1732101034456,-500.0,0.00021917,7]
[342750122,1732101034466,-500.0,0.00021917,7]
[342750123,1732101034476,-500.0,0.00021917,7]
[342750124,1732101034485,-500.0,0.00021917,7]
[342750125,1732101034495,-500.0,0.00021917,7]
[342750126,1732101034504,-500.0,0.00021917,7]
[342750127,1732101034514,-500.0,0.00021917,7]
[342750128,1732101034524,-500.0,0.00021917,7]
[342750129,1732101034533,-500.0,0.00021917,7]
[342750130,1732101034543,-500.0,0.00021917,7]
[342750131,1732101034555,-500.0,0.00021917,7]
[342750132,1732101034565,-504.69155134,0.00021917,7]
[342750133,1732101034578,-500.0,0.00021917,7]
[342750134,1732101034587,-500.0,0.00021917,7]
[342750135,1732101034597,-500.0,0.00021917,7]
[342750136,1732101034607,-500.0,0.00021917,7]
[342750137,1732101034618,-500.0,0.00021917,7]
[342750138,1732101034627,-500.0,0.00021917,7]
[342750139,1732101034637,-500.0,0.00021917,7]
[342750140,1732101034646,-500.0,0.00021917,7]
[342750141,1732101034658,-500.0,0.00021917,7]
[342750142,1732101034667,-500.0,0.00021917,7]
[342750143,1732101034678,-500.0,0.00021917,7]
[342750144,1732101034688,-1415.56,0.00021917,7]
[342750145,1732101034697,-500.0,0.00021917,7]
[342750146,1732101034707,-500.0,0.00021917,7]
[342750147,1732101034716,-500.0,0.00021917,7]
[342750148,1732101034726,-500.0,0.00021917,7]
[342750149,1732101034735,-500.0,0.00021917,7]
[342750150,1732101034744,-500.0,0.00021973,2]
[342750151,1732101034753,-1669.709079,0.00021983,2]
[342750152,1732101034762,-152.0,0.00021984,2]
[342750153,1732101034771,-943.70375436,0.00021998,2]
[342750154,1732101034781,-943.70375436,0.00022178,2]
[342750155,1732101034790,-500.0,0.0002219,2]
[342750156,1732101034799,-218.86383608,0.0002219,2]
[342750157,1732101034809,-217.88663618,0.0002219,2]
[342750158,1732101034819,-409.95933148,0.0002219,2]
[342750159,1732101034829,-52124.25563341,0.00022191,2]
[342750160,1732101034839,-500.0,0.00022191,7]
[342750161,1732101034848,-500.0,0.00022191,7]
[342750162,1732101034857,-500.0,0.00022191,7]
[342750163,1732101034867,-500.0,0.00022191,7]
[342750164,1732101034875,-500.0,0.00022191,7]
[342750165,1732101034884,-500.0,0.00022191,7]
[342750166,1732101034893,-500.0,0.00022191,7]
[342750167,1732101034902,-500.0,0.00022191,7]
[342750168,1732101034913,-500.0,0.00022191,7]
[342750169,1732101034923,-500.0,0.00022191,7]
[342750170,1732101034933,-500.0,0.00022191,7]
[342750171,1732101034942,-500.0,0.00022191,7]
[342750172,1732101034952,-500.0,0.00022191,7]
[342750173,1732101034962,-500.0,0.00022191,7]
[342750174,1732101034971,-500.0,0.00022191,7]
[342750175,1732101034980,-500.0,0.00022191,7]
[342750176,1732101034990,-500.0,0.00022191,7]
[342750177,1732101034999,-500.0,0.00022191,7]
[342750178,1732101035008,-500.0,0.00022191,7]
[342750179,1732101035017,-500.0,0.00022191,7]
[342750180,1732101035026,-500.0,0.00022191,7]
[342750181,1732101035035,-500.0,0.00022191,7]
[342750182,1732101035044,-500.0,0.00022191,7]
[342750183,1732101035053,-500.0,0.00022191,7]
[342750184,1732101035062,-500.0,0.00022191,7]
[342750185,1732101035071,-167.11,0.00022191,7]
[342750186,1732101035080,-500.0,0.00022191,7]
[342750187,1732101035089,-500.0,0.00022191,7]
[342750188,1732101035099,-500.0,0.00022191,7]
[342750189,1732101035107,-153.49,0.00022191,7]
[342750190,1732101035117,-507.88487705,0.00022191,7]
[342750191,1732101035126,-500.0,0.00022191,7]
[342750192,1732101035135,-500.0,0.00022191,7]
[342750193,1732101035144,-500.0,0.00022191,7]
[342750194,1732101035153,-500.0,0.00022191,7]
[342750195,1732101035162,-500.0,0.00022191,7]
[342750196,1732101035171,-500.0,0.00022191,7]
[342750197,1732101035180,-500.0,0.00022191,7]
[342750198,1732101035188,-567.76,0.00022191,7]
[342750199,1732101035198,-500.0,0.00022191,7]
[342750200,1732101035207,-208.99349787,0.00022191,7]
[342750201,1732101035217,-500.0,0.00022191,7]
[342750202,1732101035227,-500.0,0.00022191,7]
[342750203,1732101035236,-500.0,0.00022191,7]
[342750204,1732101035245,-500.0,0.00022191,7]
[342750205,1732101035254,-500.0,0.00022191,7]
[342750206,1732101035263,-500.0,0.00022191,7]
[342750207,1732101035273,-500.0,0.00022191,7]
[342750208,1732101035283,-500.0,0.00022191,7]
[342750209,1732101035292,-500.0,0.00022191,7]
[342750210,1732101035301,-500.0,0.00022191,7]
[342750211,1732101035310,-500.0,0.00022191,7]
[342750212,1732101035320,-500.0,0.00022191,7]
[342750213,1732101035329,-500.0,0.00022191,7]
[342750214,1732101035338,-500.0,0.00022191,7]
[342750215,1732101035347,-500.0,0.00022191,7]
[342750216,1732101035358,-500.0,0.00022191,7]
[342750217,1732101035369,-500.0,0.00022191,7]
[342750218,1732101035378,-500.0,0.00022191,7]
[342750219,1732101035387,-294.23870151,0.00022191,7]
[342750220,1732101035396,-500.0,0.00022191,7]
[342750221,1732101035406,-500.0,0.00022191,7]
[342750222,1732101035415,-500.0,0.00022191,7]
[342750223,1732101035425,-500.0,0.00022191,7]
[342750224,1732101035434,-500.0,0.00022191,7]
[342750225,1732101035443,-500.0,0.00022191,7]
[342750226,1732101035453,-500.0,0.00022191,7]
[342750227,1732101035462,-500.0,0.00022191,7]
[342750228,1732101035472,-500.0,0.00022191,7]
[342750229,1732101035481,-500.0,0.00022191,7]
[342750230,1732101035491,-500.0,0.00022191,7]
[342750231,1732101035500,-500.0,0.00022191,7]
[342750232,1732101035509,-500.0,0.00022191,7]
[342750233,1732101035519,-500.0,0.00022191,7]
[342750234,1732101035528,-500.0,0.00022191,7]
[342750235,1732101035537,-500.0,0.00022191,7]
[342750236,1732101035546,-500.0,0.00022191,7]
[342750237,1732101035560,-500.0,0.00022191,7]
[342750238,1732101035570,-500.0,0.00022191,7]
[342750239,1732101035579,-500.0,0.00022191,7]
[342750240,1732101035589,-500.0,0.00022191,7]
[342750241,1732101035598,-500.0,0.00022191,7]
[342750242,1732101035608,-500.0,0.00022191,7]
[342750243,1732101035619,-500.0,0.00022191,7]
[342750244,1732101035630,-500.0,0.00022191,7]
[342750245,1732101035639,-500.0,0.00022191,7]
[342750246,1732101035648,-500.0,0.00022191,7]
[342750247,1732101035658,-500.0,0.00022191,7]
[342750248,1732101035667,-500.0,0.00022191,7]
[342750249,1732101035676,-500.0,0.00022191,7]
[342750250,1732101035685,-500.0,0.00022191,7]
[342750251,1732101035695,-500.0,0.00022191,7]
[342750252,1732101035704,-500.0,0.00022191,7]
[342750253,1732101035713,-500.0,0.00022191,7]
[342750254,1732101035723,-500.0,0.00022191,7]
[342750255,1732101035732,-500.0,0.00022191,7]
[342750256,1732101035741,-500.0,0.00022191,7]
[342750257,1732101035751,-500.0,0.00022191,7]
[342750258,1732101035761,-500.0,0.00022191,7]
[342750259,1732101035770,-500.0,0.00022191,7]
[342750260,1732101035780,-500.0,0.00022191,7]
[342750261,1732101035789,-500.0,0.00022191,7]
[342750262,1732101035798,-500.0,0.00022191,7]
[342750263,1732101035808,-500.0,0.00022191,7]
[342750264,1732101035817,-500.0,0.00022191,7]
[342750265,1732101035826,-500.0,0.00022191,7]
[342750266,1732101035835,-500.0,0.00022191,7]
[342750267,1732101035844,-500.0,0.00022191,7]
[342750268,1732101035853,-546.7,0.00022191,7]
[342750269,1732101035864,-500.0,0.00022191,7]
[342750270,1732101035879,-500.0,0.00022191,7]
[342750271,1732101035889,-500.0,0.00022191,7]
[342750272,1732101035897,-500.0,0.00022191,7]
[342750273,1732101035907,-500.0,0.00022191,7]
[342750274,1732101035916,-475.36214997,0.00022191,7]
[342750275,1732101035925,-500.0,0.00022191,7]
[342750276,1732101035934,-500.0,0.00022191,7]
[342750277,1732101035943,-1974.74,0.00022191,7]
[342750278,1732101035953,-500.0,0.00022191,7]
[342750279,1732101035962,-500.0,0.00022191,7]
[342750280,1732101035971,-500.0,0.00022191,7]
[342750281,1732101035981,-500.0,0.00022191,7]
[342750282,1732101035991,-500.0,0.00022191,7]
[342750283,1732101036000,-500.0,0.00022191,7]
[342750284,1732101036010,-500.0,0.00022191,7]
[342750285,1732101036019,-500.0,0.00022191,7]
[342750286,1732101036029,-500.0,0.00022191,7]
[342750287,1732101036039,-500.0,0.00022191,7]
[342750288,1732101036049,-500.0,0.00022191,7]
[342750289,1732101036059,-500.0,0.00022191,7]
[342750290,1732101036069,-500.0,0.00022191,7]
[342750291,1732101036197,-500.0,0.00022191,7]
[342750292,1732101036207,-500.0,0.00022191,7]
[342750293,1732101036216,-500.0,0.00022191,7]
[342750294,1732101036226,-500.0,0.00022191,7]
[342750295,1732101036235,-242.85986878,0.00022191,7]
[342750296,1732101036244,-500.0,0.00022191,7]
[342750297,1732101036253,-500.0,0.00022191,7]
[342750298,1732101036262,-500.0,0.00022191,7]
[342750299,1732101036271,-500.0,0.00022191,7]
[342750300,1732101036280,-500.0,0.00022191,7]
[342750301,1732101036289,-500.0,0.00022191,7]
[342750302,1732101036298,-500.0,0.00022191,7]
[342750303,1732101036307,-500.0,0.00022191,7]
[342750304,1732101036317,-500.0,0.00022191,7]
[342750305,1732101036327,-500.0,0.00022191,7]
[342750306,1732101036336,-500.0,0.00022191,7]
[342750307,1732101036346,-510.26,0.00022191,7]
[342750308,1732101036355,-500.0,0.00022191,7]
[342750309,1732101036364,-500.0,0.00022191,7]
[342750310,1732101036379,-500.0,0.00022191,7]
[342750311,1732101036388,-500.0,0.00022191,7]
[342750312,1732101036398,-554.08,0.00022191,7]
[342750313,1732101036408,-500.0,0.00022191,7]
[342750314,1732101036417,-1415.56,0.00022191,7]
[342750315,1732101036426,-500.0,0.00022191,7]
[342750316,1732101036435,-500.0,0.00022191,7]
[342750317,1732101036444,-500.0,0.00022191,7]
[342750318,1732101036454,-500.0,0.00022191,7]
[342750319,1732101036463,-169.307972,0.00022233,2]
[342750320,1732101036472,-169.307972,0.00022261,2]
[342750321,1732101036481,-169.307972,0.00022289,2]
[342750322,1732101036489,-169.307972,0.00022316,2]
[342750323,1732101036498,-169.307972,0.00022344,2]
[342750324,1732101036507,-943.70375436,0.00022359,2]
[342750325,1732101036516,-154.46,0.00022465,7]
[342750326,1732101036525,-578.58,0.00022465,7]
[342750327,1732101036534,-500.0,0.00022465,7]
[342750328,1732101036543,-500.0,0.00022465,7]
[342750329,1732101036553,-357.32,0.00022465,7]
[342750330,1732101036562,-500.0,0.00022465,7]
[342750331,1732101036572,-500.0,0.00022465,7]
[342750332,1732101036584,-409.75851486,0.00022465,7]
[342750333,1732101036593,-271.07085863,0.00022465,7]
[342750334,1732101036603,-500.0,0.00022465,7]
[342750335,1732101036612,-500.0,0.00022465,7]
[342750336,1732101036627,-500.0,0.00022465,7]
[342750337,1732101036636,-500.0,0.00022465,7]
[342750338,1732101036647,-346.76,0.00022465,7]
[342750339,1732101036656,-500.0,0.00022465,7]
[342750340,1732101036666,-500.0,0.00022465,7]
[342750341,1732101036675,-500.0,0.00022465,7]
[342750342,1732101036684,-500.0,0.00022465,7]
[342750343,1732101036694,-500.0,0.00022465,7]
[342750344,1732101036703,-474.57378947,0.00022465,7]
[342750345,1732101036713,-347.72,0.00022465,7]
[342750346,1732101036723,-621.11723624,0.00022465,7]
[342750347,1732101036733,-500.0,0.00022465,7]
[342750348,1732101036744,-626.1,0.00022465,7]
[342750349,1732101036753,-366.66,0.00022465,7]
[342750350,1732101036763,-176.02,0.00022465,7]
[342750351,1732101036772,-500.0,0.00022465,7]
[342750352,1732101036782,-500.0,0.00022465,7]
[342750353,1732101036792,-325.12,0.00022465,7]
[342750354,1732101036801,-500.0,0.00022465,7]
[342750355,1732101036810,-502.68,0.00022465,7]
[342750356,1732101036820,-500.0,0.00022465,7]
[342750357,1732101036829,-171.42,0.00022465,7]
[342750358,1732101036839,-500.0,0.00022465,7]
[342750359,1732101036848,-500.0,0.00022465,7]
[342750360,1732101036858,-500.0,0.00022465,7]
[342750361,1732101036870,-500.0,0.00022465,7]
[342750362,1732101036880,-500.0,0.00022465,7]
[342750363,1732101036889,-500.0,0.00022465,7]
[342750364,1732101036898,-500.0,0.00022465,7]
[342750365,1732101036908,-500.0,0.00022465,7]
[342750366,1732101036917,-500.0,0.00022465,7]
[342750367,1732101036926,-585.08,0.00022465,7]
[342750368,1732101036935,-417.19,0.00022465,7]
[342750369,1732101036945,-350.6,0.00022465,7]
[342750370,1732101036954,-1974.74,0.00022465,7]
[342750371,1732101036963,-500.0,0.00022465,7]
[342750372,1732101036972,-500.0,0.00022465,7]
[342750373,1732101036982,-500.0,0.00022465,7]
[342750374,1732101036991,-500.0,0.00022465,7]
[342750375,1732101037001,-500.0,0.00022465,7]
[342750376,1732101037010,-388.93,0.00022465,7]
[342750377,1732101037020,-500.0,0.00022465,7]
[342750378,1732101037030,-500.0,0.00022465,7]
[342750379,1732101037039,-355.18,0.00022465,7]
[342750380,1732101037048,-500.0,0.00022465,7]
[342750381,1732101037057,-500.0,0.00022465,7]
[342750382,1732101037066,-165.82,0.00022465,7]
[342750383,1732101037075,-500.0,0.00022465,7]
[342750384,1732101037085,-601.28,0.00022465,7]
[342750385,1732101037094,-462.04,0.00022465,7]
[342750386,1732101037103,-500.0,0.00022465,7]
[342750387,1732101037112,-598.62,0.00022465,7]
[342750388,1732101037126,-1415.56,0.00022465,7]
[342750389,1732101037134,-500.0,0.00022465,7]
[342750390,1732101037143,-943.70375436,0.00022539,2]
[342750391,1732101037153,-9747.44188027,0.00022547,2]
[342750392,1732101037162,-209358.84817174,0.00022639,2]
[342750393,1732101037171,-1000.0,0.00022639,2]
[342750394,1732101037179,-500.0,0.00022673,2]
[342750395,1732101037189,-403.0,0.00022713,2]
[342750396,1732101037198,-617.68,0.00022739,7]
[342750397,1732101037207,-500.0,0.00022739,7]
[342750398,1732101037216,-500.0,0.00022739,7]
[342750399,1732101037226,-500.0,0.00022739,7]
[342750400,1732101037235,-500.0,0.00022739,7]
[342750401,1732101037244,-500.0,0.00022739,7]
[342750402,1732101037253,-314.82,0.00022739,7]
[342750403,1732101037262,-305.9,0.00022739,7]
[342750404,1732101037271,-500.0,0.00022739,7]
[342750405,1732101037280,-326.48,0.00022739,7]
[342750406,1732101037290,-500.0,0.00022739,7]
[342750407,1732101037299,-486.26,0.00022739,7]
[342750408,1732101037309,-500.0,0.00022739,7]
[342750409,1732101037319,-500.0,0.00022739,7]
[342750410,1732101037328,-500.0,0.00022739,7]
[342750411,1732101037337,-500.0,0.00022739,7]
[342750412,1732101037346,-500.0,0.00022739,7]
[342750413,1732101037355,-500.0,0.00022739,7]
[342750414,1732101037365,-500.0,0.00022739,7]
[342750415,1732101037376,-496.77,0.00022739,7]
[342750416,1732101037386,-1974.74,0.00022739,7]
[342750417,1732101037396,-500.0,0.00022739,7]
[342750418,1732101037405,-477.82,0.00022739,7]
[342750419,1732101037414,-500.0,0.00022739,7]
[342750420,1732101037423,-500.0,0.00022739,7]
[342750421,1732101037432,-500.0,0.00022739,7]
[342750422,1732101037441,-500.0,0.00022739,7]
[342750423,1732101037451,-500.0,0.00022739,7]
[342750424,1732101037460,-1415.56,0.00022739,7]
[342750425,1732101037469,-500.0,0.00022739,7]
[342750426,1732101037479,-1241.46911955,0.00022771,2]
[342750427,1732101037488,-9747.44188027,0.00022772,2]
[342750428,1732101037497,-500.0,0.00023013,7]
[342750429,1732101037506,-317.16,0.00023013,7]
[342750430,1732101037516,-500.0,0.00023013,7]
[342750431,1732101037526,-498.6,0.00023013,7]
[342750432,1732101037535,-500.0,0.00023013,7]
[342750433,1732101037544,-204.26,0.00023013,7]
[342750434,1732101037556,-500.0,0.00023013,7]
[342750435,1732101037566,-500.0,0.00023013,7]
[342750436,1732101037575,-500.0,0.00023013,7]
[342750437,1732101037584,-500.0,0.00023013,7]
[342750438,1732101037595,-500.0,0.00023013,7]
[342750439,1732101037604,-500.0,0.00023013,7]
[342750440,1732101037614,-500.0,0.00023013,7]
[342750441,1732101037631,-500.0,0.00023013,7]
[342750442,1732101037643,-1974.74,0.00023013,7]
[342750443,1732101037652,-224.38,0.00023013,7]
[342750444,1732101037662,-500.0,0.00023013,7]
[342750445,1732101037671,-500.0,0.00023013,7]
[342750446,1732101037682,-362.44,0.00023013,7]
[342750447,1732101037691,-500.0,0.00023013,7]
[342750448,1732101037700,-500.0,0.00023013,7]
[342750449,1732101037709,-1415.56,0.00023013,7]
[342750450,1732101037718,-500.0,0.00023013,7]
[342750451,1732101037727,-177.71459915,0.00023187,2]
[342750452,1732101037736,-9747.44188027,0.00023231,2]
[342750453,1732101037746,-1108.0,0.00023248,2]
[342750454,1732101037757,-530.0,0.00023248,2]
[342750455,1732101037768,-2383.0,0.00023248,2]
[342750456,1732101037777,-408.32,0.00023287,7]
[342750457,1732101037787,-500.0,0.00023287,7]
[342750458,1732101037796,-500.0,0.00023287,7]
[342750459,1732101037805,-500.0,0.00023287,7]
[342750460,1732101037814,-500.0,0.00023287,7]
[342750461,1732101037823,-500.0,0.00023287,7]
[342750462,1732101037832,-444.32,0.00023287,7]
[342750463,1732101037841,-500.0,0.00023287,7]
[342750464,1732101037850,-500.0,0.00023287,7]
[342750465,1732101037859,-500.0,0.00023287,7]
[342750466,1732101037871,-500.0,0.00023287,7]
[342750467,1732101037879,-1974.74,0.00023287,7]
[342750468,1732101037889,-500.0,0.00023287,7]
[342750469,1732101037898,-456.62,0.00023287,7]
[342750470,1732101037907,-500.0,0.00023287,7]
[342750471,1732101037916,-500.0,0.00023287,7]
[342750472,1732101037925,-500.0,0.00023287,2]
[342750473,1732101037936,-1415.56,0.00023287,7]
[342750474,1732101037945,-185.98,0.00023287,7]
[342750475,1732101037954,-195.622,0.00023406,3]
[342750476,1732101037964,-500.0,0.00023561,7]
[342750478,1732101037973,-500.0,0.00023561,7]
[342750480,1732101037982,-500.0,0.00023561,7]
[342750482,1732101037991,-500.0,0.00023561,7]
[342750483,1732101038000,-500.0,0.00023561,7]
[342750485,1732101038009,-500.0,0.00023561,7]
[342750486,1732101038018,-500.0,0.00023561,7]
[342750487,1732101038027,-500.0,0.00023561,7]
[342750490,1732101038036,-252.08,0.00023561,7]
[342750493,1732101038046,-1974.74,0.00023561,7]
[342750495,1732101038055,-500.0,0.00023561,7]
[342750497,1732101038064,-500.0,0.00023561,7]
[342750499,1732101038073,-500.0,0.00023561,7]
[342750500,1732101038082,-1415.56,0.00023561,7]
[342750502,1732101038091,-177.71459911,0.00023776,2]
[342750504,1732101038101,-500.0,0.00023835,7]
[342750506,1732101038110,-500.0,0.00023835,7]
[342750508,1732101038120,-187.46,0.00023835,7]
[342750510,1732101038129,-500.0,0.00023835,7]
[342750511,1732101038138,-500.0,0.00023835,7]
[342750513,1732101038148,-568.98,0.00023835,7]
[342750515,1732101038157,-500.0,0.00023835,7]
[342750516,1732101038166,-500.0,0.00023835,7]
[342750518,1732101038179,-1974.74,0.00023835,7]
[342750519,1732101038189,-500.0,0.00023835,7]
[342750521,1732101038199,-500.0,0.00023835,7]
[342750523,1732101038209,-500.0,0.00023835,7]
[342750524,1732101038218,-1415.56,0.00023835,7]
[342750526,1732101038229,-500.0,0.00023855,9]
[342750528,1732101038238,-16810.37,0.00024,3]
[342750530,1732101038247,-654.59,0.00024,2]
[342750532,1732101038257,-5209.55243892,0.00024,7]
[342750533,1732101038266,-500.0,0.00024109,7]
[342750534,1732101038276,-500.0,0.00024109,7]
[342750535,1732101038285,-574.25,0.00024109,7]
[342750536,1732101038295,-500.0,0.00024109,7]
[342750537,1732101038304,-500.0,0.00024109,7]
[342750538,1732101038314,-500.0,0.00024109,7]
[342750539,1732101038323,-1974.74,0.00024109,7]
[342750540,1732101038332,-500.0,0.00024109,7]
[342750541,1732101038343,-500.0,0.00024109,7]
[342750542,1732101038352,-500.0,0.00024109,7]
[342750543,1732101038361,-1415.56,0.00024109,7]
[342750544,1732101038372,-250000.0,0.00024357,2]
[342750546,1732101038382,-177.71459911,0.00024366,2]
[342750548,1732101038392,-500.0,0.00024373,2]
[342750550,1732101038402,-619.08,0.00024383,7]
[342750551,1732101038411,-500.0,0.00024383,7]
[342750553,1732101038420,-500.0,0.00024383,7]
[342750554,1732101038429,-500.0,0.00024383,7]
[342750555,1732101038438,-500.0,0.00024383,7]
[342750556,1732101038447,-1974.74,0.00024383,7]
[342750557,1732101038456,-500.0,0.00024383,7]
[342750558,1732101038466,-500.0,0.00024383,7]
[342750559,1732101038475,-500.0,0.00024383,7]
[342750560,1732101038484,-1415.56,0.00024383,7]
[342750561,1732101038494,-500.0,0.00024657,7]
[342750562,1732101038504,-200.0,0.00024657,2]
[342750563,1732101038513,-500.0,0.00024657,7]
[342750564,1732101038523,-500.0,0.00024657,7]
[342750565,1732101038532,-500.0,0.00024657,7]
[342750566,1732101038541,-1974.74,0.00024657,7]
[342750567,1732101038551,-500.0,0.00024657,7]
[342750568,1732101038561,-463.76,0.00024657,7]
[342750569,1732101038572,-462.79,0.00024657,7]
[342750570,1732101038582,-500.0,0.00024657,3]
[342750571,1732101038592,-1415.56,0.00024657,7]
[342750572,1732101038602,-6156.3,0.000247,14]
[342750573,1732101038612,-12009.44,0.000247,14]
[342750574,1732101038625,-1000.0,0.00024921,2]
[342750575,1732101038635,-500.0,0.00024931,7]
[342750576,1732101038646,-200.0,0.00024931,2]
[342750577,1732101038656,-500.0,0.00024931,7]
[342750578,1732101038665,-500.0,0.00024931,7]
[342750579,1732101038674,-500.0,0.00024931,7]
[342750580,1732101038685,-1974.74,0.00024931,7]
[342750581,1732101038695,-500.0,0.00024931,7]
[342750582,1732101038704,-1415.56,0.00024931,7]
[342750583,1732101038713,-177.71459911,0.00024955,2]
[342750584,1732101038723,-300.0,0.00025,2]
[342750585,1732101038731,-300.0,0.00025,2]
[342750586,1732101038741,-272.599999,0.00025,2]
[342750587,1732101038750,-300.0,0.000251,2]
[342750588,1732101038760,-500.0,0.00025205,7]
[342750589,1732101038769,-200.0,0.00025205,2]
[342750590,1732101038779,-500.0,0.00025205,7]
[342750591,1732101038790,-500.0,0.00025205,7]